lending/lending_fUSD_20250315
["ID","MTS","AMOUNT","RATE_DAILY","PERIOD"]
[356173814,1742013041071,-150.0,0.00019693,2]
[356173815,1742013041080,-150.0,0.00019693,2]
[356173816,1742013041090,-150.0,0.00019698,2]
[356173817,1742013041099,-150.0,0.00019699,2]
[356173818,1742013041108,-500.0,0.00019699,2]
[356173819,1742013041118,-150.32552659,0.00019699,2]
[356173820,1742013041132,-349.67447341,0.00019699,2]
[356173821,1742013041141,-500.0,0.00019699,2]
[356173822,1742013041151,-500.0,0.00019699,2]
[356173823,1742013041160,-500.0,0.00019699,2]
[356173824,1742013041169,-641.50565257,0.00019699,2]
[356173825,1742013041179,-500.0,0.00019699,2]
[356173826,1742013041188,-500.0,0.00019699,2]
[356173827,1742013041197,-500.0,0.00019699,2]
[356173828,1742013041208,-400.0,0.00019699,2]
[356173829,1742013041217,-379.45864986,0.00019699,2]
[356173830,1742013041227,-715.08621121,0.000197,2]
[356173831,1742013041238,-838.55291544,0.000197,2]
[356173834,1742013042792,-39398.49353293,0.000197,2]
[356173835,1742013042804,-2782.7,0.000197,2]
[356173836,1742013042850,-1017.6830018,0.000197,2]
[356173837,1742013042861,-1189.88173211,0.000197,2]
[356173838,1742013042873,-446.51173508,0.000197,2]
[356173839,1742013042908,-6266.8835218,0.000197,2]
[356173840,1742013042919,-676.16000008,0.000197,2]
[356173841,1742013042968,-4325.99470946,0.000197,2]
[356173842,1742013042980,-800.069992,0.000197,2]
[356173843,1742013042991,-1152.9712,0.000197,2]
[356173844,1742013043002,-1714.58486203,0.000197,2]
[356173845,1742013043748,-798.19146953,0.000197,2]
[356173846,1742013043759,-15275.11202038,0.000197,2]
[356173847,1742013043770,-3275.53723411,0.000197,2]
[356173848,1742013043781,-3867.34,0.000197,2]
[356173850,1742013045856,-61313.60643353,0.000197,2]
[356173851,1742013045914,-4445.38032,0.000197,2]
[356173852,1742013046030,-1427.26659171,0.000197,2]
[356173853,1742013046042,-1159.3,0.000197,2]
[356173854,1742013046089,-11615.0282456,0.000197,2]
[356173855,1742013046151,-38368.9285714,0.000197,2]
[356173856,1742013046163,-5668.43545392,0.000197,2]
[356173857,1742013046172,-46080.84994177,0.000197,2]
[356173858,1742013046210,-500.0,0.000197,2]
[356173859,1742013046221,-1000.0,0.000197,2]
[356173860,1742013046232,-9771.2,0.000197,2]
[356173861,1742013046244,-58637.07822018,0.000197,2]
[356173865,1742014229219,250.0,9e-05,2]
[356173866,1742014231942,-300.0,0.00011,2]
[356173867,1742014231952,-350.0,0.00013,2]
[356173868,1742014231961,-37.92150937,0.00016669,2]
[356173869,1742014231993,-457.36849063,0.00016669,2]
[356173870,1742014232003,-150.0,0.00017171,2]
[356173871,1742014232012,-1846.3,0.00018235,2]
[356173872,1742014232022,-74.02569709,0.00018259,2]
[356173873,1742014232033,-75.97430291,0.00018259,2]
[356173874,1742014232043,-165.83,0.00018272,2]
[356173875,1742014232052,-150.0,0.00018336,2]
[356173876,1742014232062,-150.0,0.00018336,2]
[356173877,1742014232072,-150.0,0.00018356,2]
[356173878,1742014232081,-95.92106818,0.00018357,2]
[356173879,1742014232092,-204.07893182,0.00018357,2]
[356173880,1742014232102,-163.27149679,0.00018358,2]
[356173881,1742014232113,-836.72850321,0.00018358,2]
[356173882,1742014232123,-2000.0,0.00018358,2]
[356173883,1742014232132,-1472.96142699,0.00018369,2]
[356173884,1742014232151,-507.91857301,0.00018369,2]
[356173885,1742014232161,-150.99,0.00018369,2]
[356173886,1742014232170,-999.99,0.00018369,2]
[356173887,1742014232180,-108.20017563,0.00018373,2]
[356173888,1742014232199,-102.70982437,0.00018373,2]
[356173889,1742014232209,-265.35,0.00018373,2]
[356173890,1742014232218,-200.0,0.00018388,2]
[356173891,1742014232227,-187.16,0.00018537,2]
[356173892,1742014232236,-1026.77,0.00018554,2]
[356173893,1742014232246,-34.93491349,0.00018586,2]
[356173894,1742014232266,-152.22508651,0.00018586,2]
[356173895,1742014232276,-153.91,0.000186,2]
[356173896,1742014232286,-200.0,0.00018605,2]
[356173897,1742014232295,-1456.89,0.00018623,2]
[356173898,1742014232305,-5490.53445163,0.00018631,2]
[356173899,1742014232321,-4178.856,0.00018631,2]
[356173900,1742014232344,-5143.62458313,0.00018631,2]
[356173901,1742014232357,-486.87103,0.00018631,2]
[356173902,1742014232370,-935.06652891,0.00018631,2]
[356173903,1742014232381,-3473.13022299,0.00018631,2]
[356173904,1742014232392,-1343.09222694,0.00018631,2]
[356173905,1742014232403,-2848.8249564,0.00018631,2]
[356173906,1742014232412,-187.16,0.00018635,2]
[356173907,1742014232422,-234.56,0.0001865,2]
[356173908,1742014232433,-684.49,0.00018653,2]
[356173909,1742014232443,-187.16,0.00018684,2]
[356173910,1742014232454,-187.16,0.00018732,2]
[356173911,1742014232464,-150.0,0.00018746,2]
[356173912,1742014232474,-326.49,0.00018764,30]
[356173913,1742014232484,-150.0,0.00018764,2]
[356173914,1742014232494,-187.16,0.00018781,2]
[356173915,1742014232504,-550.0,0.00018783,2]
[356173916,1742014232515,-1000.0,0.00018801,2]
[356173917,1742014232524,-187.16,0.0001883,2]
[356173918,1742014232534,-187.16,0.00018879,2]
[356173919,1742014232544,-176.65,0.00018897,2]
[356173921,1742014232553,-3867.06206823,0.000189,2]
[356173923,1742014232562,-187.16,0.00018928,2]
[356173925,1742014232572,-495.29,0.00018933,2]
[356173927,1742014232581,-187.16,0.00018976,2]
[356173929,1742014232591,-187.16,0.00019025,2]
[356173931,1742014232606,-187.16,0.00019074,2]
[356173934,1742014232624,-187.16,0.00019123,2]
[356173937,1742014232635,-187.16,0.00019172,2]
[356173939,1742014232644,-187.16,0.0001922,2]
[356173941,1742014232654,-150.0,0.00019234,2]
[356173943,1742014232663,-187.16,0.00019269,2]
[356173945,1742014232672,-868.08361754,0.0001929,2]
[356173947,1742014232681,-1042.22398286,0.00019306,2]
[356173949,1742014232690,-983.3070594,0.00019306,2]
[356173951,1742014232700,-187.16,0.00019318,2]
[356173953,1742014232710,-187.16,0.00019367,2]
[356173956,1742014232720,-150.0,0.00019397,2]
[356173958,1742014232729,-150.0,0.00019397,2]
[356173959,1742014232738,-187.16,0.00019416,2]
[356173961,1742014232747,-187.16,0.00019464,2]
[356173964,1742014232757,-209.3327,0.000195,2]
[356173966,1742014232766,-150.43,0.000195,2]
[356173968,1742014232776,-4434.8286,0.00019545,2]
[356173970,1742014232786,-2191.199,0.00019579,2]
[356173971,1742014232796,-150.0,0.00019596,2]
[356173972,1742014232806,-4047.62848394,0.00019597,7]
[356173973,1742014232815,-150.0,0.00019599,2]
[356173974,1742014232825,-172.8893,0.000196,2]
[356173975,1742014232835,-315.84658644,0.000196,2]
[356173976,1742014232844,-2500.0,0.000196,2]
[356173977,1742014232853,-24027.69215304,0.000196,2]
[356173978,1742014232863,-150.0,0.00019601,2]
[356173979,1742014232873,-150.0,0.00019603,2]
[356173980,1742014232882,-1000.0,0.00019607,2]
[356173981,1742014232892,-150.0,0.0001961,2]
[356173982,1742014232901,-150.0,0.0001961,2]
[356173983,1742014232911,-150.0,0.00019611,2]
[356173984,1742014232920,-150.0,0.00019615,2]
[356173985,1742014232929,-979.79190162,0.00019625,2]
[356173986,1742014232939,-150.0,0.00019627,2]
[356173987,1742014232948,-150.0,0.00019627,2]
[356173988,1742014232958,-150.0,0.00019627,2]
[356173989,1742014232967,-150.0,0.00019636,2]
[356173990,1742014232976,-150.0,0.00019642,2]
[356173991,1742014232986,-150.0,0.00019643,2]
[356173992,1742014232995,-150.0,0.00019649,2]
[356173993,1742014233004,-150.0,0.00019653,2]
[356173994,1742014233014,-351.91297422,0.00019673,2]
[356173995,1742014233023,-500.40253572,0.00019673,2]
[356173996,1742014233033,-398.95953209,0.00019673,2]
[356173997,1742014233043,-150.0,0.00019674,2]
[356173998,1742014233053,-150.0,0.00019674,2]
[356173999,1742014233063,-150.0,0.00019674,2]
[356174000,1742014233073,-150.0,0.00019678,2]
[356174001,1742014233083,-150.0,0.00019678,2]
[356174002,1742014233094,-1487.43494888,0.0001968,2]
[356174003,1742014233111,-5737.01942183,0.0001968,2]
[356174008,1742014238039,-275.75537057,0.00015,2]
[356174009,1742014238096,-124.24462943,0.00015,2]
[356174010,1742014238106,-450.0,0.00017,2]
[356174011,1742014238116,-500.0,0.00019,2]
[356174012,1742014238126,-36107.06532816,0.0001968,2]
[356174015,1742014240257,-1160.65500001,0.0001968,2]
[356174016,1742014240269,-275.07352257,0.0001968,2]
[356174017,1742014240281,-339.64820013,0.0001968,2]
[356174018,1742014240475,-296.27973106,0.0001968,2]
[356174019,1742014240653,-3500.8,0.0001968,2]
[356174024,1742014243020,-724.35005528,0.0001968,2]
[356174029,1742014243076,-4131.92845925,0.0001968,2]
[356174032,1742014244196,-1641.91733968,0.0001968,2]
[356174033,1742014244207,-619.2449657,0.0001968,2]
[356174034,1742014244218,-762.03254079,0.0001968,2]
[356174035,1742014245990,-502.92489105,0.000196,2]
[356174036,1742014246101,-400.79170895,0.000196,2]
[356174037,1742014246111,-215.20829105,0.0001968,2]
[356174038,1742014246157,-904.64662748,0.0001968,2]
[356174039,1742014246169,-7370.31710061,0.0001968,2]
[356174040,1742014246180,-150.0,0.00019682,2]
[356174041,1742014246189,-150.0,0.00019684,2]
[356174042,1742014246199,-806.08289939,0.00019685,2]
[356174043,1742014246319,-193.91710061,0.00019685,2]
[356174044,1742014246330,-150.0,0.00019691,2]
[356174045,1742014246340,-150.0,0.00019693,2]
[356174046,1742014246349,-150.0,0.00019694,2]
[356174047,1742014246359,-150.0,0.00019697,2]
[356174048,1742014246368,-150.0,0.00019697,2]
[356174049,1742014246377,-150.0,0.00019698,2]
[356174050,1742014246386,-500.0,0.00019699,2]
[356174051,1742014246396,-500.0,0.00019699,2]
[356174052,1742014246405,-500.0,0.00019699,2]
[356174053,1742014246414,-500.0,0.00019699,2]
[356174054,1742014246424,-500.0,0.00019699,2]
[356174056,1742014246434,-500.0,0.00019699,2]
[356174057,1742014246443,-500.0,0.00019699,2]
[356174058,1742014246453,-500.0,0.00019699,2]
[356174059,1742014246462,-161.324474,0.00019699,2]
[356174060,1742014246471,-500.0,0.00019699,2]
[356174061,1742014246480,-500.0,0.00019699,2]
[356174062,1742014246490,-500.0,0.00019699,2]
[356174064,1742014246499,-629.0539568,0.00019699,2]
[356174065,1742014246509,-500.0,0.00019699,2]
[356174066,1742014246519,-500.0,0.00019699,2]
[356174067,1742014246529,-500.0,0.00019699,2]
[356174068,1742014246538,-17503.13725867,0.000197,2]
[356174090,1742015432200,-300.0,0.00014618,2]
[356174091,1742015432210,-199.597,0.00014619,2]
[356174092,1742015432219,-1233.348,0.00014619,2]
[356174093,1742015432229,-1271.0,0.00014619,2]
[356174094,1742015432238,-151.0,0.00014619,2]
[356174095,1742015432247,-420.0,0.00016004,2]
[356174096,1742015432256,-150.0,0.00016081,2]
[356174097,1742015432265,-495.22,0.00016757,2]
[356174098,1742015432276,-480.0,0.00017523,2]
[356174099,1742015432286,-151.0,0.00017619,2]
[356174100,1742015432296,-500.0,0.000179,2]
[356174101,1742015432305,-797.26,0.00017916,2]
[356174102,1742015432314,-184.83,0.00018089,2]
[356174103,1742015432323,-176.99576713,0.00018136,2]
[356174104,1742015432334,-9155.14256453,0.00018136,2]
[356174105,1742015432476,-2114.27166834,0.00018136,2]
[356174106,1742015432485,-189.74,0.00018139,2]
[356174107,1742015432494,-1000.0,0.00018144,2]
[356174108,1742015432504,-173.0315114,0.00018198,2]
[356174109,1742015432513,-1441.91610026,0.00018212,2]
[356174110,1742015432532,-18203.63393441,0.00018212,2]
[356174111,1742015432541,-450.0,0.00018221,2]
[356174112,1742015432551,-1647.38,0.00018222,2]
[356174113,1742015432560,-4101.64,0.00018222,2]
[356174114,1742015432570,-8765.80939998,0.00018222,2]
[356174129,1742015438075,-6826.51577479,0.00018222,2]
[356174130,1742015438300,-4235.81073391,0.00018222,2]
[356174144,1742015440321,-19936.04409132,0.00018222,2]
[356174145,1742015440331,-162.26099398,0.00018222,2]
[356174146,1742015440345,-774.67900602,0.00018222,2]
[356174147,1742015440355,-10778.55,0.00018222,2]
[356174148,1742015440365,-57.36301484,0.00018368,2]
[356174149,1742015440376,-92.63698516,0.00018368,2]
[356174150,1742015440386,-3469.51,0.00018373,2]
[356174151,1742015440396,-17702.29276204,0.00018373,2]
[356174152,1742015440407,-309.03900005,0.00018373,2]
[356174153,1742015440547,-5869.23823791,0.00018373,2]
[356174154,1742015440556,-200.0,0.0001842,2]
[356174155,1742015440566,-550.0,0.00018432,2]
[356174156,1742015440575,-1385.0,0.00018463,7]
[356174157,1742015440585,-173.0315114,0.00018498,2]
[356174158,1742015440594,-168.04,0.00018514,2]
[356174159,1742015440604,-168.0,0.00018542,2]
[356174160,1742015440614,-200.0,0.00018716,2]
[356174161,1742015440624,-2000.0,0.00018718,2]
[356174162,1742015440633,-168.0,0.00018774,2]
[356174163,1742015440643,-250.0,0.00018795,2]
[356174164,1742015440652,-173.0315114,0.00018798,2]
[356174165,1742015440661,-385.1,0.0001885,30]
[356174166,1742015440671,-150.0,0.00018859,2]
[356174167,1742015440681,-255.11728453,0.0001888,2]
[356174168,1742015440690,-3738.15999926,0.000189,2]
[356174169,1742015440699,-168.0,0.00019005,2]
[356174170,1742015440709,-495.22,0.00019021,2]
[356174171,1742015440718,-173.0315114,0.00019198,2]
[356174172,1742015440727,-168.0,0.00019237,2]
[356174173,1742015440736,-150.0,0.00019349,2]
[356174174,1742015440745,-1797.0,0.000194,2]
[356174175,1742015440755,-300.0,0.00019459,2]
[356174176,1742015440764,-168.0,0.00019469,2]
[356174177,1742015440774,-173.0315114,0.00019498,2]
[356174178,1742015440783,-2500.0,0.000195,2]
[356174179,1742015440792,-276.3657631,0.000195,2]
[356174180,1742015440801,-5530.09905488,0.000195,2]
[356174181,1742015440824,-9061.50160055,0.000195,2]
[356174185,1742015443550,-7033.32228227,0.000195,2]
[356174186,1742015443559,-150.0,0.00019585,2]
[356174187,1742015443568,-150.0,0.00019591,2]
[356174188,1742015443577,-150.0,0.00019598,2]
[356174189,1742015443587,-189.72932493,0.00019599,2]
[356174190,1742015443596,-21737.8118,0.000196,2]
[356174191,1742015443606,-500.0,0.000196,2]
[356174192,1742015443615,-279.525,0.000196,2]
[356174193,1742015443624,-175.462838,0.000196,2]
[356174194,1742015443634,-168.973083,0.000196,2]
[356174195,1742015443643,-175.462838,0.000196,2]
[356174196,1742015443652,-186.736633,0.000196,2]
[356174197,1742015443662,-186.736633,0.000196,2]
[356174198,1742015443671,-151.0,0.000196,2]
[356174199,1742015443680,-154.129706,0.000196,2]
[356174200,1742015443689,-189.905872,0.000196,2]
[356174201,1742015443699,-1088.66396114,0.000196,2]
[356174202,1742015443708,-172.399001,0.000196,2]
[356174203,1742015443718,-151.0,0.000196,2]
[356174204,1742015443728,-263.545075,0.000196,2]
[356174205,1742015443738,-263.545075,0.000196,2]
[356174206,1742015443747,-151.0,0.000196,2]
[356174207,1742015443756,-200.20484182,0.00019601,2]
[356174208,1742015443766,-200.09408835,0.00019601,2]
[356174210,1742015443775,-1000.0,0.00019606,2]
[356174211,1742015443784,-150.0,0.00019611,2]
[356174212,1742015443793,-150.0,0.00019612,2]
[356174213,1742015443802,-150.0,0.00019615,2]
[356174214,1742015443812,-150.0,0.00019623,2]
[356174215,1742015443821,-150.0,0.00019624,2]
[356174216,1742015443830,-150.0,0.00019625,2]
[356174217,1742015443839,-150.0,0.00019627,2]
[356174218,1742015443849,-150.0,0.00019627,2]
[356174219,1742015443859,-150.0,0.00019628,2]
[356174220,1742015443868,-150.0,0.00019629,2]
[356174221,1742015443878,-150.0,0.00019629,2]
[356174222,1742015443887,-150.0,0.0001963,2]
[356174223,1742015443897,-150.0,0.00019631,2]
[356174224,1742015443906,-150.0,0.00019632,2]
[356174225,1742015443915,-150.0,0.00019632,2]
[356174226,1742015443926,-150.0,0.00019637,2]
[356174227,1742015443935,-150.0,0.0001964,2]
[356174228,1742015443944,-150.0,0.00019643,2]
[356174229,1742015443954,-150.0,0.00019644,2]
[356174230,1742015443963,-150.0,0.00019644,2]
[356174231,1742015443973,-150.0,0.0001965,2]
[356174232,1742015443983,-150.0,0.0001965,2]
[356174233,1742015443992,-150.0,0.00019651,2]
[356174234,1742015444003,-150.0,0.00019654,2]
[356174235,1742015444013,-150.0,0.00019655,2]
[356174236,1742015444022,-150.0,0.00019656,2]
[356174237,1742015444032,-150.0,0.00019659,2]
[356174238,1742015444041,-175.462838,0.00019659,2]
[356174239,1742015444053,-175.462838,0.00019659,2]
[356174240,1742015444065,-186.736633,0.00019659,2]
[356174241,1742015444074,-186.736633,0.00019659,2]
[356174242,1742015444085,-151.0,0.00019659,2]
[356174243,1742015444094,-150.0,0.0001966,2]
[356174244,1742015444105,-150.0,0.00019662,2]
[356174245,1742015444115,-150.0,0.0001967,2]
[356174246,1742015444124,-150.0,0.00019671,2]
[356174247,1742015444387,-150.0,0.00019671,2]
[356174248,1742015444397,-151.0,0.00019672,2]
[356174249,1742015444407,-151.0,0.00019672,2]
[356174250,1742015444416,-168.714011,0.00019672,2]
[356174251,1742015444426,-12495.41379035,0.00019672,2]
[356174252,1742015444435,-150.0,0.00019673,2]
[356174253,1742015444444,-150.0,0.00019678,2]
[356174254,1742015444453,-150.0,0.00019679,2]
[356174255,1742015444463,-150.0,0.0001968,2]
[356174256,1742015444472,-259.66482779,0.00019682,2]
[356174257,1742015444481,-150.0,0.00019683,2]
[356174258,1742015444490,-150.0,0.00019683,2]
[356174259,1742015444499,-150.0,0.00019685,2]
[356174260,1742015444509,-150.0,0.00019685,2]
[356174261,1742015444519,-150.0,0.00019692,2]
[356174262,1742015444528,-150.0,0.00019698,2]
[356174263,1742015444538,-500.0,0.00019699,2]
[356174264,1742015444549,-500.0,0.00019699,2]
[356174265,1742015444560,-500.0,0.00019699,2]
[356174266,1742015444570,-500.0,0.00019699,2]
[356174267,1742015444579,-540.33776976,0.00019699,2]
[356174268,1742015444588,-9962.67282665,0.000197,2]
[356174269,1742015444600,-306.0,0.000197,2]
[356174270,1742015446575,-1637.58127468,0.000197,2]
[356174271,1742015446594,-726.52366915,0.000197,2]
[356174272,1742015446606,-1230.0823413,0.000197,2]
[356174273,1742015446618,-3812.25802087,0.000197,2]
[356174274,1742015446629,-82393.77510595,0.000197,2]
[356174275,1742015446640,-1130.07324647,0.000197,2]
[356174276,1742015446662,-378.8694,0.000197,2]
[356174277,1742015446680,-2834.90121725,0.000197,2]
[356174278,1742015446690,-51110.09878275,0.000197,2]
[356174279,1742015446701,-4481.46949273,0.000197,2]
[356174280,1742015446716,-359.59283247,0.000197,2]
[356174282,1742015446734,-3088.43388188,0.000197,2]
[356174283,1742015446745,-32671.81506098,0.000197,2]
[356174290,1742016063095,250.0,9e-05,2]
[356174323,1742016632409,-288.0,0.00011,2]
[356174324,1742016632425,-12.0,0.00011,2]
[356174325,1742016632436,-150.0,0.000121,2]
[356174326,1742016632446,-350.0,0.00013,2]
[356174327,1742016632455,-518.9,0.00014427,2]
[356174328,1742016632465,-44.53,0.00015,2]
[356174329,1742016632478,-355.47,0.00015,2]
[356174330,1742016632487,-189.33,0.00016,2]
[356174331,1742016632499,-445.69,0.00016499,2]
[356174332,1742016632510,-450.0,0.00017,2]
[356174333,1742016632519,-132.78801156,0.00017766,2]
[356174334,1742016632539,-14570.57001997,0.00017766,2]
[356174335,1742016632550,-1970.18623878,0.00017766,2]
[356174336,1742016632562,-3149.999975,0.00017766,2]
[356174337,1742016632573,-676.10575469,0.00017766,2]
[356174338,1742016632584,-189.56,0.00018093,2]
[356174339,1742016632593,-108.05924531,0.0001811,2]
[356174340,1742016632605,-715.63075469,0.0001811,2]
[356174341,1742016632614,-2400.151,0.0001825,2]
[356174342,1742016632624,-150.0,0.00018275,2]
[356174343,1742016632633,-250.0,0.00018313,2]
[356174344,1742016632643,-2000.0,0.0001835,2]
[356174345,1742016632652,-200.0,0.00018352,2]
[356174346,1742016632662,-353.0,0.00018396,30]
[356174347,1742016632932,-166.65,0.00018429,2]
[356174348,1742016633005,-151.87,0.00018727,2]
[356174349,1742016633015,-153.91,0.00018741,2]
[356174350,1742016633025,-3916.57081315,0.00018741,2]
[356174351,1742016633037,-542.92,0.00018741,2]
[356174352,1742016633049,-479.93,0.00018741,2]
[356174353,1742016633061,-3909.71870609,0.00018741,2]
[356174354,1742016633085,-7597.58456803,0.00018741,2]
[356174355,1742016633102,-6891.26719767,0.00018741,2]
[356174356,1742016633115,-423.51186156,0.00018741,2]
[356174357,1742016633132,-138.4968535,0.00018741,2]
[356174358,1742016633142,-445.69,0.00018763,2]
[356174359,1742016633153,-150.0,0.00018763,2]
[356174360,1742016633163,-150.0,0.00018763,2]
[356174361,1742016633173,-151.87,0.00018776,2]
[356174362,1742016633184,-93.73598527,0.00018799,2]
[356174363,1742016633198,-316.52362598,0.00018799,2]
[356174364,1742016633212,-330.55581015,0.00018799,2]
[356174365,1742016633234,-259.1845786,0.00018799,2]
[356174366,1742016633244,-1342.27574418,0.00018799,2]
[356174387,1742016638262,-64.41425582,0.00018799,2]
[356174389,1742016638273,-151.87,0.00018825,2]
[356174391,1742016638282,-151.87,0.00018875,2]
[356174393,1742016638292,-3613.55466599,0.000189,2]
[356174395,1742016638301,-151.87,0.00018924,2]
[356174397,1742016638311,-151.87,0.00018973,2]
[356174399,1742016638321,-151.0315114,0.00018998,2]
[356174401,1742016638331,-500.0,0.00019,2]
[356174403,1742016638340,-151.87,0.00019023,2]
[356174405,1742016638350,-151.87,0.00019072,2]
[356174407,1742016638359,-173.0315114,0.00019098,2]
[356174409,1742016638369,-151.87,0.00019121,2]
[356174411,1742016638379,-151.87,0.0001917,2]
[356174413,1742016638389,-173.0315114,0.00019198,2]
[356174415,1742016638399,-151.87,0.0001922,2]
[356174417,1742016638411,-150.0,0.00019251,2]
[356174419,1742016638430,-151.87,0.00019269,2]
[356174422,1742016638441,-91.36491007,0.00019298,2]
[356174426,1742016638470,-59.66660133,0.00019298,2]
[356174428,1742016638480,-1029.89312462,0.00019306,2]
[356174430,1742016638489,-1131.29136085,0.00019306,2]
[356174432,1742016638499,-151.87,0.00019318,2]
[356174434,1742016638508,-151.87,0.00019368,2]
[356174435,1742016638515,-173.0315114,0.00019398,2]
[356174437,1742016638524,-57.68210713,0.000194,2]
[356174440,1742016638536,-234.61149287,0.000194,2]
[356174441,1742016638543,-151.87,0.00019417,2]
[356174443,1742016638552,-151.87,0.00019466,2]
[356174445,1742016638560,-173.0315114,0.00019498,2]
[356174447,1742016638570,-1000.0,0.00019499,2]
[356174449,1742016638579,-3853.12724935,0.00019499,2]
[356174451,1742016638589,-32019.6094,0.000195,2]
[356174453,1742016638598,-151.87,0.00019516,2]
[356174455,1742016638608,-457.4717,0.00019562,2]
[356174457,1742016638618,-151.87,0.00019565,2]
[356174460,1742016638627,-47025.17220767,0.0001958,2]
[356174462,1742016638637,-150.0,0.00019595,2]
[356174465,1742016638646,-17858.2002,0.000196,2]
[356174468,1742016638656,-230.4471,0.000196,2]
[356174471,1742016638666,-870.3242,0.000196,2]
[356174474,1742016638675,-150.0,0.000196,2]
[356174476,1742016638684,-150.0,0.00019601,2]
[356174478,1742016638693,-150.0,0.00019606,2]
[356174480,1742016638703,-150.0,0.00019609,2]
[356174481,1742016638711,-150.0,0.00019611,2]
[356174483,1742016638721,-150.0,0.00019614,2]
[356174486,1742016638730,-150.0,0.00019614,2]
[356174488,1742016638740,-151.87,0.00019614,2]
[356174490,1742016638750,-150.0,0.00019618,2]
[356174492,1742016638759,-150.0,0.00019621,2]
[356174494,1742016638769,-150.0,0.00019621,2]
[356174496,1742016638778,-150.0,0.00019626,2]
[356174498,1742016638787,-150.0,0.00019629,2]
[356174500,1742016638797,-150.0,0.0001963,2]
[356174502,1742016638806,-150.0,0.0001963,2]
[356174504,1742016638816,-150.0,0.00019633,2]
[356174506,1742016638825,-1020.20809838,0.00019638,2]
[356174508,1742016638834,-150.0,0.00019639,2]
[356174510,1742016638843,-150.0,0.0001964,2]
[356174512,1742016638852,-150.0,0.00019643,2]
[356174514,1742016638862,-150.0,0.00019643,2]
[356174516,1742016638872,-150.51250464,0.00019644,2]
[356174517,1742016638882,-150.0,0.00019647,2]
[356174518,1742016638891,-150.0,0.00019648,2]
[356174519,1742016638900,-150.0,0.0001965,2]
[356174520,1742016638910,-150.0,0.00019653,2]
[356174522,1742016638919,-150.0,0.00019653,2]
[356174524,1742016638929,-150.0,0.00019656,2]
[356174526,1742016638938,-150.0,0.00019659,2]
[356174528,1742016638947,-150.0,0.00019661,2]
[356174530,1742016638956,-151.87,0.00019663,2]
[356174532,1742016638965,-150.0,0.00019664,2]
[356174534,1742016638975,-150.0,0.00019667,2]
[356174536,1742016638984,-150.0,0.0001967,2]
[356174537,1742016638994,-150.0,0.00019671,2]
[356174538,1742016639003,-150.0,0.00019671,2]
[356174539,1742016639013,-150.0,0.00019672,2]
[356174540,1742016639022,-150.0,0.00019672,2]
[356174541,1742016639032,-150.0,0.00019673,2]
[356174542,1742016639041,-150.0,0.0001968,2]
[356174543,1742016639050,-150.0,0.0001968,2]
[356174544,1742016639059,-265.85237,0.0001968,2]
[356174545,1742016639069,-151.0,0.0001968,2]
[356174546,1742016639078,-151.0,0.0001968,2]
[356174547,1742016639088,-237.190568,0.0001968,2]
[356174548,1742016639098,-237.190568,0.0001968,2]
[356174549,1742016639107,-151.0,0.0001968,2]
[356174550,1742016639117,-151.0,0.0001968,2]
[356174551,1742016639126,-150.0,0.00019683,2]